[Event "*** SCC Grand Prix: Titled Tuesday Blitz"]
[Site "Chess.com"]
[Date "2020.10.13"]
[Round "10"]
[White "Chessdude1987"]
[Black "Sergienko_Sergey"]
[Result "0-1"]
[WhiteElo "2279"]
[BlackElo "2403"]
[TimeControl "180+1"]
[EndTime "11:56:07 PDT"]
[Termination "Sergienko_Sergey won on time"]

1. e4 {[%clk 0:03:00.9]} 1... c5 {[%clk 0:02:59.4]} 2. b3 {[%clk 0:03:00.4]}
2... Nc6 {[%clk 0:02:57.9]} 3. Bb2 {[%clk 0:03:00.6]} 3... e5 {[%clk 0:02:57.1]}
4. Nc3 {[%clk 0:02:59.7]} 4... d6 {[%clk 0:02:55.9]} 5. Bc4 {[%clk 0:02:59.8]}
5... Be6 {[%clk 0:02:45.6]} 6. Nge2 {[%clk 0:02:48.9]} 6... Nf6 {[%clk
0:02:38.7]} 7. O-O {[%clk 0:02:47.9]} 7... Be7 {[%clk 0:02:36.5]} 8. d3 {[%clk
0:02:47.1]} 8... O-O {[%clk 0:02:35.2]} 9. Nd5 {[%clk 0:02:46.4]} 9... Bxd5
{[%clk 0:02:30.1]} 10. exd5 {[%clk 0:02:46.1]} 10... Nb8 {[%clk 0:02:28.3]} 11.
f4 {[%clk 0:02:44.8]} 11... exf4 {[%clk 0:02:12.8]} 12. Qd2 {[%clk 0:02:39.9]}
12... Nh5 {[%clk 0:02:03.3]} 13. Nxf4 {[%clk 0:02:36.9]} 13... Bg5 {[%clk
0:01:57.3]} 14. g3 {[%clk 0:02:37]} 14... Nxf4 {[%clk 0:01:53.4]} 15. gxf4
{[%clk 0:02:36.8]} 15... Bf6 {[%clk 0:01:53.1]} 16. d4 {[%clk 0:02:34.2]} 16...
a6 {[%clk 0:01:42.2]} 17. c3 {[%clk 0:02:27.9]} 17... cxd4 {[%clk 0:01:38.6]}
18. cxd4 {[%clk 0:02:27.7]} 18... Nd7 {[%clk 0:01:37.6]} 19. a4 {[%clk
0:02:19.4]} 19... Re8 {[%clk 0:01:35.7]} 20. Rae1 {[%clk 0:02:16.5]} 20... Nf8
{[%clk 0:01:32.9]} 21. Re5 {[%clk 0:02:08.9]} 21... Qd7 {[%clk 0:01:25.5]} 22.
Rxe8 {[%clk 0:02:08.3]} 22... Rxe8 {[%clk 0:01:24.3]} 23. f5 {[%clk 0:02:04.5]}
23... h6 {[%clk 0:01:23]} 24. Qd3 {[%clk 0:01:47.7]} 24... Nh7 {[%clk
0:01:21.5]} 25. Bc3 {[%clk 0:01:41.1]} 25... Bg5 {[%clk 0:01:15.1]} 26. Re1
{[%clk 0:01:38.7]} 26... Nf6 {[%clk 0:00:59.5]} 27. Qf3 {[%clk 0:01:29.4]} 27...
Rc8 {[%clk 0:00:45.6]} 28. a5 {[%clk 0:01:27.7]} 28... Re8 {[%clk 0:00:33.7]}
29. Rxe8+ {[%clk 0:01:17.8]} 29... Qxe8 {[%clk 0:00:32.8]} 30. Bd3 {[%clk
0:01:15.1]} 30... Qc8 {[%clk 0:00:29.2]} 31. Bc4 {[%clk 0:01:14.5]} 31... Qd7
{[%clk 0:00:27.7]} 32. Kg2 {[%clk 0:01:10]} 32... Ne8 {[%clk 0:00:26.5]} 33. Kg3
{[%clk 0:01:08.5]} 33... Bf6 {[%clk 0:00:26.1]} 34. h4 {[%clk 0:01:07.6]} 34...
Nc7 {[%clk 0:00:24.8]} 35. Qe4 {[%clk 0:01:06.6]} 35... Nb5 {[%clk 0:00:22.1]}
36. Bb2 {[%clk 0:01:03]} 36... Qd8 {[%clk 0:00:19.6]} 37. Bxb5 {[%clk
0:00:54.7]} 37... axb5 {[%clk 0:00:19.6]} 38. Kh3 {[%clk 0:00:39.7]} 38... Kh7
{[%clk 0:00:17.2]} 39. b4 {[%clk 0:00:34.3]} 39... Qc8 {[%clk 0:00:16.6]} 40.
Qd3 {[%clk 0:00:33.3]} 40... Qd7 {[%clk 0:00:15.5]} 41. Kg4 {[%clk 0:00:31.9]}
41... g6 {[%clk 0:00:14.2]} 42. h5 {[%clk 0:00:31.3]} 42... gxh5+ {[%clk
0:00:11.9]} 43. Kxh5 {[%clk 0:00:30.9]} 43... Qe8 {[%clk 0:00:11.4]} 44. Bc3
{[%clk 0:00:28.5]} 44... Qg8 {[%clk 0:00:10]} 45. Qe3 {[%clk 0:00:26.5]} 45...
Qg7 {[%clk 0:00:07.3]} 46. Qf4 {[%clk 0:00:20.4]} 46... Bg5 {[%clk 0:00:06.4]}
47. Qg4 {[%clk 0:00:19]} 47... Qf6 {[%clk 0:00:05.8]} 48. Qe4 {[%clk 0:00:14.8]}
48... Qg7 {[%clk 0:00:05]} 49. f6+ {[%clk 0:00:14.5]} 49... Qg6+ {[%clk
0:00:04]} 50. Qxg6+ {[%clk 0:00:14.3]} 50... fxg6+ {[%clk 0:00:04.2]} 51. Kg4
{[%clk 0:00:14.5]} 51... Bxf6 {[%clk 0:00:04.7]} 52. Kh3 {[%clk 0:00:12.2]}
52... Kg7 {[%clk 0:00:05.1]} 53. Kg4 {[%clk 0:00:12.3]} 53... h5+ {[%clk
0:00:05.5]} 54. Kh3 {[%clk 0:00:12.4]} 54... Kf7 {[%clk 0:00:05.9]} 55. Kg3
{[%clk 0:00:12.5]} 55... Bg5 {[%clk 0:00:05.9]} 56. Be1 {[%clk 0:00:06.6]} 56...
Kf6 {[%clk 0:00:05.7]} 57. Bf2 {[%clk 0:00:06.1]} 57... Kf5 {[%clk 0:00:05.7]}
58. Kf3 {[%clk 0:00:05.9]} 58... Bf6 {[%clk 0:00:06]} 59. Bg3 {[%clk 0:00:05.7]}
59... Be7 {[%clk 0:00:04.8]} 60. Bh2 {[%clk 0:00:05.4]} 60... h4 {[%clk
0:00:05.1]} 61. Ke3 {[%clk 0:00:04.8]} 61... g5 {[%clk 0:00:05.4]} 0-1

[Event "*** SCC Grand Prix: Titled Tuesday Blitz"]
[Site "Chess.com"]
[Date "2020.10.13"]
[Round "10"]
[White "doons21"]
[Black "davigator"]
[Result "1/2-1/2"]
[WhiteElo "2542"]
[BlackElo "2340"]
[TimeControl "180+1"]
[EndTime "11:56:11 PDT"]
[Termination "Game drawn - insufficient material"]

1. d4 {[%clk 0:03:00.9]} 1... Nf6 {[%clk 0:02:57.9]} 2. c4 {[%clk 0:03:00.8]}
2... e6 {[%clk 0:02:57.4]} 3. Nc3 {[%clk 0:02:59.6]} 3... Bb4 {[%clk 0:02:56.8]}
4. f3 {[%clk 0:03:00]} 4... d5 {[%clk 0:02:54.8]} 5. a3 {[%clk 0:02:58.9]} 5...
Bxc3+ {[%clk 0:02:54.8]} 6. bxc3 {[%clk 0:02:59.8]} 6... c5 {[%clk 0:02:54.9]}
7. cxd5 {[%clk 0:02:58.4]} 7... Nxd5 {[%clk 0:02:55.4]} 8. dxc5 {[%clk
0:02:58.5]} 8... f5 {[%clk 0:02:55.3]} 9. Qd4 {[%clk 0:02:35.6]} 9... O-O {[%clk
0:02:51.5]} 10. c4 {[%clk 0:02:34.7]} 10... Nf6 {[%clk 0:02:46.2]} 11. Qxd8
{[%clk 0:02:27.9]} 11... Rxd8 {[%clk 0:02:45.6]} 12. Bb2 {[%clk 0:02:10.4]}
12... Na6 {[%clk 0:02:43]} 13. c6 {[%clk 0:02:10.6]} 13... bxc6 {[%clk
0:02:42.4]} 14. Nh3 {[%clk 0:02:10.4]} 14... Nc5 {[%clk 0:02:38.9]} 15. Nf4
{[%clk 0:02:05.3]} 15... Kf7 {[%clk 0:02:30.6]} 16. Nd3 {[%clk 0:02:03.1]} 16...
Na4 {[%clk 0:02:27]} 17. Be5 {[%clk 0:01:58.5]} 17... Ba6 {[%clk 0:02:25.4]} 18.
Rc1 {[%clk 0:01:57.3]} 18... Nd7 {[%clk 0:02:22.6]} 19. Ba1 {[%clk 0:01:55.8]}
19... Rab8 {[%clk 0:02:14.3]} 20. g4 {[%clk 0:01:52.4]} 20... g6 {[%clk
0:02:11.6]} 21. gxf5 {[%clk 0:01:47.2]} 21... exf5 {[%clk 0:02:10]} 22. h4
{[%clk 0:01:47.3]} 22... Nac5 {[%clk 0:02:03.1]} 23. Nb4 {[%clk 0:01:44.2]}
23... Bb7 {[%clk 0:02:01.4]} 24. Bc3 {[%clk 0:01:32.9]} 24... Re8 {[%clk
0:02:00.2]} 25. Kf2 {[%clk 0:01:30.3]} 25... Ne5 {[%clk 0:01:51.8]} 26. h5
{[%clk 0:01:24.1]} 26... g5 {[%clk 0:01:50.8]} 27. Rd1 {[%clk 0:01:02.5]} 27...
Nxc4 {[%clk 0:01:41.6]} 28. Bd4 {[%clk 0:01:00.1]} 28... Rbd8 {[%clk 0:01:24.9]}
29. e4 {[%clk 0:00:58.5]} 29... Nxa3 {[%clk 0:01:22.4]} 30. exf5 {[%clk
0:00:54.1]} 30... a5 {[%clk 0:01:12.4]} 31. Bxc5 {[%clk 0:00:54]} 31... Rxd1
{[%clk 0:01:11.2]} 32. Bc4+ {[%clk 0:00:54.4]} 32... Nxc4 {[%clk 0:01:11.4]} 33.
Rxd1 {[%clk 0:00:55.3]} 33... Bc8 {[%clk 0:01:07.6]} 34. Nxc6 {[%clk 0:00:50.2]}
34... Bxf5 {[%clk 0:01:04.7]} 35. Rd4 {[%clk 0:00:49.4]} 35... Ne5 {[%clk
0:01:02.6]} 36. Nd8+ {[%clk 0:00:44.8]} 36... Kg8 {[%clk 0:00:48.1]} 37. Nb7
{[%clk 0:00:38.1]} 37... Nd3+ {[%clk 0:00:31.9]} 38. Kg3 {[%clk 0:00:38.3]}
38... Rb8 {[%clk 0:00:32.2]} 39. Nd6 {[%clk 0:00:32.9]} 39... Nxc5 {[%clk
0:00:28.8]} 40. Nxf5 {[%clk 0:00:33.3]} 40... a4 {[%clk 0:00:27.2]} 41. Rd5
{[%clk 0:00:32.3]} 41... Ne6 {[%clk 0:00:21.9]} 42. Rd7 {[%clk 0:00:28.7]} 42...
Ra8 {[%clk 0:00:19.8]} 43. Nh6+ {[%clk 0:00:27]} 43... Kf8 {[%clk 0:00:18.1]}
44. Rxh7 {[%clk 0:00:27]} 44... Ra6 {[%clk 0:00:15.8]} 45. Rb7 {[%clk 0:00:19]}
45... a3 {[%clk 0:00:14.5]} 46. Rb1 {[%clk 0:00:19.5]} 46... a2 {[%clk
0:00:14.6]} 47. Ra1 {[%clk 0:00:20.2]} 47... Nd4 {[%clk 0:00:14.5]} 48. Ng4
{[%clk 0:00:19.4]} 48... Nc2 {[%clk 0:00:14.4]} 49. Rxa2 {[%clk 0:00:19.7]}
49... Rxa2 {[%clk 0:00:13]} 50. Ne5 {[%clk 0:00:20.6]} 50... Kg7 {[%clk
0:00:11.7]} 51. Kg4 {[%clk 0:00:20.4]} 51... Ne3+ {[%clk 0:00:09.1]} 52. Kxg5
{[%clk 0:00:20.3]} 52... Rg2+ {[%clk 0:00:09.1]} 53. Kf4 {[%clk 0:00:19.7]}
53... Kh7 {[%clk 0:00:07.8]} 54. Kxe3 {[%clk 0:00:19]} 54... Kh6 {[%clk
0:00:07.3]} 55. Kf4 {[%clk 0:00:16.2]} 55... Kxh5 {[%clk 0:00:06.6]} 56. Kf5
{[%clk 0:00:16.7]} 56... Rf2 {[%clk 0:00:05.1]} 57. f4 {[%clk 0:00:17.2]} 57...
Rf1 {[%clk 0:00:04]} 58. Nd7 {[%clk 0:00:14.1]} 58... Kh6 {[%clk 0:00:03.6]} 59.
Nf6 {[%clk 0:00:14.3]} 59... Kg7 {[%clk 0:00:03.3]} 60. Ng4 {[%clk 0:00:14.7]}
60... Kf7 {[%clk 0:00:03.7]} 61. Ne5+ {[%clk 0:00:15.6]} 61... Kf8 {[%clk
0:00:03.7]} 62. Kg5 {[%clk 0:00:16.2]} 62... Kg7 {[%clk 0:00:03.9]} 63. Ng4
{[%clk 0:00:16.2]} 63... Rg1 {[%clk 0:00:03.6]} 64. f5 {[%clk 0:00:16.4]} 64...
Kf7 {[%clk 0:00:03.6]} 65. Kf4 {[%clk 0:00:16.6]} 65... Rf1+ {[%clk 0:00:03]}
66. Kg5 {[%clk 0:00:16.5]} 66... Rxf5+ {[%clk 0:00:02.4]} 67. Kxf5 {[%clk
0:00:15.3]} 1/2-1/2

[Event "*** SCC Grand Prix: Titled Tuesday Blitz"]
[Site "Chess.com"]
[Date "2020.10.13"]
[Round "10"]
[White "thedjoker98"]
[Black "Triumphmate"]
[Result "1-0"]
[WhiteElo "2595"]
[BlackElo "2444"]
[TimeControl "180+1"]
[EndTime "11:56:12 PDT"]
[Termination "thedjoker98 won by resignation"]

1. d4 {[%clk 0:03:00.9]} 1... d5 {[%clk 0:02:58.7]} 2. c4 {[%clk 0:03:00.3]}
2... e6 {[%clk 0:02:59]} 3. Nc3 {[%clk 0:02:59.6]} 3... f5 {[%clk 0:02:59.1]} 4.
g3 {[%clk 0:02:51.4]} 4... c6 {[%clk 0:02:58.5]} 5. Bg2 {[%clk 0:02:51.6]} 5...
Nf6 {[%clk 0:02:53.9]} 6. Nh3 {[%clk 0:02:51.3]} 6... Be7 {[%clk 0:02:51.1]} 7.
O-O {[%clk 0:02:51.6]} 7... O-O {[%clk 0:02:51.6]} 8. b3 {[%clk 0:02:51.3]} 8...
Ne4 {[%clk 0:02:50.8]} 9. Qc2 {[%clk 0:02:49.4]} 9... Nd7 {[%clk 0:02:51]} 10.
Rd1 {[%clk 0:02:48.7]} 10... Ndf6 {[%clk 0:02:50.2]} 11. Bb2 {[%clk 0:02:45.1]}
11... Qe8 {[%clk 0:02:50]} 12. Nf4 {[%clk 0:02:42.1]} 12... Bd7 {[%clk
0:02:43.7]} 13. Nd3 {[%clk 0:02:42]} 13... Nxc3 {[%clk 0:02:40.1]} 14. Bxc3
{[%clk 0:02:41.2]} 14... Bd6 {[%clk 0:02:40.1]} 15. Bb4 {[%clk 0:02:38]} 15...
Bxb4 {[%clk 0:02:39.6]} 16. Nxb4 {[%clk 0:02:38.9]} 16... Qe7 {[%clk 0:02:39.2]}
17. Nd3 {[%clk 0:02:24.1]} 17... Be8 {[%clk 0:02:37.6]} 18. Ne5 {[%clk
0:02:23.2]} 18... Nd7 {[%clk 0:02:37.7]} 19. f4 {[%clk 0:02:18]} 19... Nxe5
{[%clk 0:02:35.9]} 20. dxe5 {[%clk 0:02:16.7]} 20... Bh5 {[%clk 0:02:26.2]} 21.
c5 {[%clk 0:02:09.9]} 21... b6 {[%clk 0:02:19.2]} 22. Rac1 {[%clk 0:02:00.5]}
22... Rac8 {[%clk 0:02:14.9]} 23. Rd4 {[%clk 0:01:56]} 23... Rc7 {[%clk
0:02:10.4]} 24. Rb4 {[%clk 0:01:47.8]} 24... Rb8 {[%clk 0:02:08.1]} 25. e3
{[%clk 0:01:34]} 25... h6 {[%clk 0:02:07.7]} 26. Qc3 {[%clk 0:01:32.2]} 26...
Kh7 {[%clk 0:02:06.7]} 27. Qd4 {[%clk 0:01:29.6]} 27... Rbb7 {[%clk 0:01:37.2]}
28. cxb6 {[%clk 0:01:20.8]} 28... axb6 {[%clk 0:01:38.1]} 29. Rxb6 {[%clk
0:01:20.8]} 29... Rxb6 {[%clk 0:01:07.4]} 30. Qxb6 {[%clk 0:01:21.7]} 30... c5
{[%clk 0:01:08.3]} 31. Qd6 {[%clk 0:01:14.3]} 31... Qxd6 {[%clk 0:00:51.5]} 32.
exd6 {[%clk 0:01:15.2]} 32... Rc6 {[%clk 0:00:52]} 33. d7 {[%clk 0:01:12.8]}
33... Rd6 {[%clk 0:00:51.8]} 34. Rxc5 {[%clk 0:01:12.2]} 34... Rxd7 {[%clk
0:00:52.1]} 35. Bf1 {[%clk 0:01:08.4]} 35... d4 {[%clk 0:00:42.6]} 36. exd4
{[%clk 0:01:03.8]} 36... Rxd4 {[%clk 0:00:43.5]} 37. Rc2 {[%clk 0:01:01.9]}
37... Bf3 {[%clk 0:00:40.8]} 38. Bc4 {[%clk 0:00:59.1]} 38... Be4 {[%clk
0:00:38.8]} 39. Rb2 {[%clk 0:00:58.3]} 39... Rd1+ {[%clk 0:00:37.4]} 40. Kf2
{[%clk 0:00:57.7]} 40... Rh1 {[%clk 0:00:37.9]} 41. Ke3 {[%clk 0:00:57.5]} 41...
Re1+ {[%clk 0:00:20.6]} 42. Kd4 {[%clk 0:00:57.4]} 42... Kg6 {[%clk 0:00:19.4]}
43. a4 {[%clk 0:00:54.5]} 43... Kf6 {[%clk 0:00:20.3]} 44. Kc5 {[%clk
0:00:51.7]} 44... Ra1 {[%clk 0:00:20]} 45. Kb6 {[%clk 0:00:51.1]} 45... e5
{[%clk 0:00:20.3]} 46. fxe5+ {[%clk 0:00:49.4]} 46... Kxe5 {[%clk 0:00:21.2]}
47. a5 {[%clk 0:00:50.2]} 47... g5 {[%clk 0:00:21.8]} 48. a6 {[%clk 0:00:50.1]}
48... f4 {[%clk 0:00:22.4]} 49. gxf4+ {[%clk 0:00:49.7]} 49... gxf4 {[%clk
0:00:23.3]} 50. a7 {[%clk 0:00:50]} 50... f3 {[%clk 0:00:23.6]} 51. b4 {[%clk
0:00:43.9]} 51... Kf4 {[%clk 0:00:21.7]} 52. Ra2 {[%clk 0:00:34.4]} 52... Rc1
{[%clk 0:00:21.7]} 53. Ba6 {[%clk 0:00:34.3]} 53... Ke3 {[%clk 0:00:20.4]} 54.
Bb7 {[%clk 0:00:32.8]} 54... Bb1 {[%clk 0:00:14.7]} 55. Rb2 {[%clk 0:00:28.1]}
55... f2 {[%clk 0:00:13.2]} 56. Rxf2 {[%clk 0:00:26.7]} 56... Kxf2 {[%clk
0:00:13.3]} 57. a8=Q {[%clk 0:00:27.2]} 57... Bd3 {[%clk 0:00:11]} 58. Qf8+
{[%clk 0:00:26.2]} 58... Ke1 {[%clk 0:00:10.9]} 59. Qxh6 {[%clk 0:00:24.8]}
59... Rb1 {[%clk 0:00:07.7]} 60. Qe3+ {[%clk 0:00:24.2]} 60... Be2 {[%clk
0:00:08.3]} 61. Qc3+ {[%clk 0:00:20.6]} 61... Kf1 {[%clk 0:00:07.9]} 62. Ba6
{[%clk 0:00:18.9]} 62... Bxa6 {[%clk 0:00:06.7]} 63. Kxa6 {[%clk 0:00:19.8]}
63... Kg2 {[%clk 0:00:07.2]} 64. h4 {[%clk 0:00:19.4]} 64... Rf1 {[%clk
0:00:05.7]} 65. b5 {[%clk 0:00:18.3]} 65... Rf3 {[%clk 0:00:04.9]} 66. Qc6
{[%clk 0:00:17.8]} 66... Kg3 {[%clk 0:00:04.5]} 67. Qxf3+ {[%clk 0:00:18.2]} 1-0

[Event "*** SCC Grand Prix: Titled Tuesday Blitz"]
[Site "Chess.com"]
[Date "2020.10.13"]
[Round "10"]
[White "RoelandPruijssers"]
[Black "Ranindu2003"]
[Result "1-0"]
[WhiteElo "2490"]
[BlackElo "2592"]
[TimeControl "180+1"]
[EndTime "11:56:23 PDT"]
[Termination "RoelandPruijssers won by resignation"]

1. e4 {[%clk 0:02:58.3]} 1... e5 {[%clk 0:02:59]} 2. f4 {[%clk 0:02:42.6]} 2...
exf4 {[%clk 0:02:58.2]} 3. Nf3 {[%clk 0:02:41.6]} 3... d5 {[%clk 0:02:57.5]} 4.
exd5 {[%clk 0:02:41.4]} 4... Qxd5 {[%clk 0:02:54.7]} 5. Nc3 {[%clk 0:02:36.5]}
5... Qd8 {[%clk 0:02:52.6]} 6. d4 {[%clk 0:02:32.9]} 6... Bd6 {[%clk 0:02:51.8]}
7. Bc4 {[%clk 0:02:31.2]} 7... Ne7 {[%clk 0:02:50.6]} 8. Ng5 {[%clk 0:02:18.6]}
8... Ng6 {[%clk 0:02:02.6]} 9. Bxf7+ {[%clk 0:01:52.1]} 9... Kf8 {[%clk
0:02:01.7]} 10. Qh5 {[%clk 0:01:45.2]} 10... Qe7+ {[%clk 0:01:34.1]} 11. Kd1
{[%clk 0:01:30.7]} 11... Qf6 {[%clk 0:01:30.9]} 12. Re1 {[%clk 0:01:10.4]} 12...
Bd7 {[%clk 0:01:25.8]} 13. Bd2 {[%clk 0:01:01.8]} 13... Nc6 {[%clk 0:01:21.3]}
14. Nce4 {[%clk 0:00:55]} 14... Qf5 {[%clk 0:01:17.1]} 15. c3 {[%clk 0:00:44]}
15... Be7 {[%clk 0:01:11.1]} 16. Rf1 {[%clk 0:00:37.7]} 16... Rd8 {[%clk
0:00:56.5]} 17. h3 {[%clk 0:00:33.6]} 17... Bxg5 {[%clk 0:00:32.9]} 18. Nxg5
{[%clk 0:00:31.6]} 18... Nce7 {[%clk 0:00:32.3]} 19. g4 {[%clk 0:00:11.6]} 19...
Qd3 {[%clk 0:00:28.8]} 20. Re1 {[%clk 0:00:11.8]} 20... c5 {[%clk 0:00:19.2]}
21. b3 {[%clk 0:00:05.4]} 21... cxd4 {[%clk 0:00:18.1]} 22. Bc4 {[%clk
0:00:05.6]} 22... Qg3 {[%clk 0:00:14.5]} 23. cxd4 {[%clk 0:00:04]} 23... f3
{[%clk 0:00:07]} 24. Nxh7+ {[%clk 0:00:03.1]} 24... Rxh7 {[%clk 0:00:06.8]} 25.
Qxh7 {[%clk 0:00:03.4]} 25... f2 {[%clk 0:00:07.7]} 26. Rf1 {[%clk 0:00:03.2]}
26... Qf3+ {[%clk 0:00:07.9]} 27. Kc2 {[%clk 0:00:01.8]} 27... Qe4+ {[%clk
0:00:07.4]} 28. Kb2 {[%clk 0:00:01.8]} 28... Bc6 {[%clk 0:00:06.8]} 29. Bc3
{[%clk 0:00:02.2]} 29... Qf3 {[%clk 0:00:06.7]} 30. d5 {[%clk 0:00:02.1]} 30...
Nxd5 {[%clk 0:00:07]} 31. Qxg7+ {[%clk 0:00:02.4]} 31... Ke8 {[%clk 0:00:07.9]}
32. Rae1+ {[%clk 0:00:02.1]} 32... Nde7 {[%clk 0:00:07.5]} 33. Re2 {[%clk
0:00:02]} 33... Kd7 {[%clk 0:00:08.4]} 34. Rfxf2 {[%clk 0:00:02.3]} 34... Qh1
{[%clk 0:00:07.9]} 35. Rd2+ {[%clk 0:00:03.2]} 35... Kc7 {[%clk 0:00:07.6]} 36.
Be5+ {[%clk 0:00:03.1]} 36... Kc8 {[%clk 0:00:06.8]} 37. Rxd8+ {[%clk
0:00:02.5]} 37... Kxd8 {[%clk 0:00:07.7]} 38. Bf6 {[%clk 0:00:02.1]} 38... Be4
{[%clk 0:00:06.5]} 39. Rd2+ {[%clk 0:00:02.5]} 39... Kc7 {[%clk 0:00:06.2]} 40.
Be5+ {[%clk 0:00:02.2]} 40... Kc6 {[%clk 0:00:05.1]} 41. Rd6+ {[%clk 0:00:01.1]}
41... Kc5 {[%clk 0:00:04.5]} 42. Rd2 {[%clk 0:00:01.1]} 42... Qb1+ {[%clk
0:00:04.1]} 43. Ka3 {[%clk 0:00:01.9]} 43... Qc1+ {[%clk 0:00:04.7]} 44. Rb2
{[%clk 0:00:02.6]} 44... Qe1 {[%clk 0:00:05.4]} 45. Bd4+ {[%clk 0:00:02.6]}
45... Kc6 {[%clk 0:00:05.3]} 46. Qf6+ {[%clk 0:00:03.1]} 46... Kc7 {[%clk
0:00:05.9]} 47. Be5+ {[%clk 0:00:03.6]} 47... Kd7 {[%clk 0:00:05.9]} 48. Qe6+
{[%clk 0:00:03.6]} 48... Kd8 {[%clk 0:00:05.8]} 49. Qd6+ {[%clk 0:00:03.2]}
49... Ke8 {[%clk 0:00:06]} 50. Bb5+ {[%clk 0:00:01.4]} 50... Kf8 {[%clk
0:00:06.5]} 51. Bd4 {[%clk 0:00:01.7]} 51... Qa5+ {[%clk 0:00:05.8]} 52. Ba4
{[%clk 0:00:02.3]} 52... b5 {[%clk 0:00:06.1]} 53. Qb8+ {[%clk 0:00:01.7]} 53...
Kf7 {[%clk 0:00:06.2]} 54. Qxb5 {[%clk 0:00:02.6]} 54... Qc7 {[%clk 0:00:06.6]}
55. Qc4+ {[%clk 0:00:02.7]} 55... Qxc4 {[%clk 0:00:06.2]} 56. bxc4 {[%clk
0:00:03.6]} 56... Ke6 {[%clk 0:00:06.9]} 57. Rf2 {[%clk 0:00:04.3]} 57... Kd6
{[%clk 0:00:07.1]} 58. Rf6+ {[%clk 0:00:04.5]} 58... Kc7 {[%clk 0:00:06.2]} 59.
Kb4 {[%clk 0:00:05.4]} 59... Bb7 {[%clk 0:00:05.7]} 60. Bc5 {[%clk 0:00:04.9]}
60... Bc8 {[%clk 0:00:03.5]} 61. Bd6+ {[%clk 0:00:05.1]} 61... Kd8 {[%clk
0:00:03.2]} 62. Bxe7+ {[%clk 0:00:03.8]} 62... Kxe7 {[%clk 0:00:04.1]} 63. Rxg6
{[%clk 0:00:03.8]} 1-0